bitfinex/quotes_BTCUSD_20230106
["timestamp","ask_amount","ask_price","bid_price","bid_amount"]
[1672997821964,0.84426,16791.0,16790.0,0.62001614]
[1672997822868,1.439817,16791.0,16790.0,0.62001614]
[1672997824608,1.97442309,16791.0,16790.0,0.62001614]
[1672997826987,1.439817,16791.0,16790.0,0.62001614]
[1672997828074,0.84426,16791.0,16790.0,0.62001614]
[1672997835430,1.58551804,16791.0,16790.0,0.006]
[1672997835703,1.37886609,16791.0,16790.0,0.006]
[1672997836770,1.97442309,16791.0,16790.0,0.006]
[1672997837002,1.97442309,16791.0,16790.0,0.00591654]
[1672997842913,1.97442309,16791.0,16790.0,0.54638081]
[1672997842914,0.84426,16791.0,16790.0,0.54638081]
[1672997843394,1.37886609,16791.0,16790.0,0.54638081]
[1672997844130,0.84426,16791.0,16790.0,0.54638081]
[1672997844658,3.07250677,16791.0,16790.0,0.00591654]
[1672997844904,2.91191979,16791.0,16790.0,0.00591654]
[1672997845155,3.51325986,16791.0,16790.0,0.00591654]
[1672997846235,2.91191979,16791.0,16790.0,0.00591654]
[1672997846488,3.51325986,16791.0,16790.0,0.00591654]
[1672997847253,2.91191979,16791.0,16790.0,0.00591654]
[1672997847499,3.51325986,16791.0,16790.0,0.00591654]
[1672997848059,3.53157587,16791.0,16790.0,0.00591654]
[1672997848239,3.41737202,16791.0,16790.0,0.00591654]
[1672997848500,3.41737202,16791.0,16790.0,0.00475645]
[1672997848755,3.42527562,16791.0,16790.0,0.00475645]
[1672997849002,3.11603195,16791.0,16790.0,0.00475645]
[1672997851281,3.11603195,16791.0,16790.0,0.00289881]
[1672997857872,3.11588168,16791.0,16790.0,0.00289881]
[1672997858381,3.6656562,16791.0,16790.0,0.00289881]
[1672997858631,0.5,16790.0,16785.0,0.01633923]
[1672997858890,0.44415588,16786.0,16785.0,0.01633923]
[1672997859142,3.61359312,16786.0,16785.0,0.01633923]
[1672997859369,3.51525539,16786.0,16785.0,0.01633923]
[1672997859584,2.95780688,16786.0,16785.0,0.01633923]
[1672997859869,2.647651,16786.0,16785.0,0.01633923]
[1672997860123,3.09157896,16786.0,16785.0,0.01633923]
[1672997860396,4.07110471,16786.0,16785.0,0.01633923]
[1672997860652,3.64907886,16786.0,16785.0,0.01633923]
[1672997862125,4.00408273,16786.0,16785.0,0.01633923]
[1672997862345,3.64907886,16786.0,16785.0,0.01633923]
[1672997863630,3.73560235,16786.0,16785.0,0.01633923]
[1672997863891,4.22203054,16786.0,16785.0,0.01633923]
[1672997864145,4.46215223,16786.0,16785.0,0.01633923]
[1672997864400,4.20102847,16786.0,16785.0,0.01633923]
[1672997864678,4.53196849,16786.0,16785.0,0.01633923]
[1672997864927,4.23326607,16786.0,16785.0,0.0100765]
[1672997865881,4.09926607,16786.0,16785.0,0.0100765]
[1672997866103,4.39686797,16786.0,16785.0,0.0100765]
[1672997866327,4.39686797,16786.0,16785.0,0.0120765]
[1672997866328,4.53386797,16786.0,16785.0,0.0120765]
[1672997866552,4.39686797,16786.0,16785.0,0.0100765]
[1672997866773,4.53286797,16786.0,16785.0,0.0120765]
[1672997867168,4.53286797,16786.0,16785.0,0.00737899]
[1672997867549,4.23577528,16786.0,16785.0,0.00737899]
[1672997867855,4.23577528,16786.0,16785.0,0.00728149]
[1672997868095,0.5,16785.0,16783.0,0.01422442]
[1672997868358,4.65012549,16784.0,16783.0,0.01422442]
[1672997869114,4.35012549,16784.0,16783.0,0.01422442]
[1672997869376,4.35012549,16784.0,16783.0,0.01622442]
[1672997869632,4.43654789,16784.0,16783.0,0.01422442]
[1672997869889,5.07919934,16784.0,16783.0,0.01622442]
[1672997870144,4.90192087,16784.0,16783.0,0.01622442]
[1672997870679,4.46592087,16784.0,16783.0,0.01422442]
[1672997870977,4.46592087,16784.0,16783.0,0.01622442]
[1672997870978,4.39526942,16784.0,16783.0,0.01622442]
[1672997871236,4.69526942,16784.0,16783.0,0.01622442]
[1672997871751,4.55926942,16784.0,16783.0,0.01422442]
[1672997872001,4.69526942,16784.0,16783.0,0.01622442]
[1672997872274,5.22646335,16784.0,16783.0,0.01622442]
[1672997873305,5.22646335,16784.0,16783.0,0.01336823]
[1672997873306,5.48046151,16784.0,16783.0,0.01336823]
[1672997873640,5.12608729,16784.0,16783.0,0.01336823]
[1672997874404,5.48020932,16784.0,16783.0,0.01336823]
[1672997874932,5.12608729,16784.0,16783.0,0.01336823]
[1672997875125,5.48020551,16784.0,16783.0,0.01336823]
[1672997875846,5.12608729,16784.0,16783.0,0.01336823]
[1672997876083,5.48017067,16784.0,16783.0,0.01336823]
[1672997877288,5.12571413,16784.0,16783.0,0.01336823]
[1672997877522,4.68311952,16784.0,16783.0,0.01336823]
[1672997877756,5.12571295,16784.0,16783.0,0.01336823]
[1672997879934,4.68311952,16784.0,16783.0,0.01336823]
[1672997880174,5.12576184,16784.0,16783.0,0.01336823]
[1672997882123,4.68311952,16784.0,16783.0,0.01336823]
[1672997882896,5.12591097,16784.0,16783.0,0.01336823]
[1672997883405,5.12591097,16784.0,16783.0,0.01096781]
[1672997883650,5.48014317,16784.0,16783.0,0.01096781]
[1672997883897,5.12591097,16784.0,16783.0,0.01096781]
[1672997884146,4.68311952,16784.0,16783.0,0.01096781]
[1672997889210,4.38311952,16784.0,16783.0,0.01096781]
[1672997889467,4.50052598,16784.0,16783.0,0.01096781]
[1672997889729,4.13301282,16784.0,16783.0,0.01096781]
[1672997889992,3.47967784,16784.0,16783.0,0.01096781]
[1672997890298,4.1866542,16784.0,16783.0,0.01096781]
[1672997890518,3.29310788,16784.0,16783.0,0.01096781]
[1672997890765,3.35568234,16784.0,16783.0,0.01096781]
[1672997891010,3.7939359,16784.0,16783.0,0.01096781]
[1672997891261,4.4056329,16784.0,16783.0,0.01096781]
[1672997891552,4.28922794,16784.0,16783.0,0.01096781]
[1672997891757,4.58922794,16784.0,16783.0,0.01096781]
[1672997892003,4.70065178,16784.0,16783.0,0.01096781]
[1672997892741,4.40065178,16784.0,16783.0,0.01096781]
[1672997894311,4.93221298,16784.0,16783.0,0.01096781]
[1672997894544,4.67434648,16784.0,16783.0,0.01096781]
[1672997895054,5.23221298,16784.0,16783.0,0.01096781]
[1672997895312,4.67434648,16784.0,16783.0,0.01096781]
[1672997896325,4.93221298,16784.0,16783.0,0.01096781]
[1672997896598,4.37434648,16784.0,16783.0,0.01096781]
[1672997897075,4.93221298,16784.0,16783.0,0.01096781]
[1672997899905,4.37434648,16784.0,16783.0,0.01096781]
[1672997900144,3.93609292,16784.0,16783.0,0.01096781]
[1672997900406,3.88226242,16784.0,16783.0,0.01096781]
[1672997901405,3.88435396,16784.0,16783.0,0.01096781]
[1672997901651,3.35070122,16784.0,16783.0,0.01096781]
[1672997901944,4.27937822,16784.0,16783.0,0.01096781]
[1672997902156,4.35742843,16784.0,16783.0,0.01096781]
[1672997904149,4.95702932,16784.0,16783.0,0.01096781]
[1672997905902,4.95702932,16784.0,16783.0,0.01088617]
[1672997906906,4.95691227,16784.0,16783.0,0.00898915]
[1672997910488,5.25691227,16784.0,16783.0,0.00898915]
[1672997910719,5.48970783,16784.0,16783.0,0.00898915]
[1672997910945,4.63184133,16784.0,16783.0,0.00898915]
[1672997911230,4.69904577,16784.0,16783.0,0.00898915]
[1672997911497,4.93184133,16784.0,16783.0,0.00898915]
[1672997911839,5.18970783,16784.0,16783.0,0.00898915]
[1672997911990,4.93184133,16784.0,16783.0,0.00898915]
[1672997912784,4.69904577,16784.0,16783.0,0.00898915]
[1672997913035,5.25691227,16784.0,16783.0,0.00898915]
[1672997913342,4.82041749,16784.0,16783.0,0.00898915]
[1672997913570,4.58762193,16784.0,16783.0,0.00898915]
[1672997913829,4.4016613,16784.0,16783.0,0.00898915]
[1672997914363,4.56449759,16784.0,16783.0,0.00898915]
[1672997914858,4.00663109,16784.0,16783.0,0.00898915]
[1672997916090,3.39493409,16784.0,16783.0,0.00898915]
[1672997918189,2.7953332,16784.0,16783.0,0.00898915]
[1672997918402,2.7573947,16784.0,16783.0,0.00898915]
[1672997918648,3.69269515,16784.0,16783.0,0.00898915]
[1672997918900,3.74652565,16784.0,16783.0,0.00898915]
[1672997919710,4.30439215,16784.0,16783.0,0.00898915]
[1672997920187,3.96869259,16784.0,16783.0,0.00898915]
[1672997920743,3.41082609,16784.0,16783.0,0.00898915]
[1672997921464,2.8112252,16784.0,16783.0,0.00898915]
[1672997921722,3.3690917,16784.0,16783.0,0.00898915]
[1672997923235,3.96869259,16784.0,16783.0,0.00898915]
[1672997923483,3.41082609,16784.0,16783.0,0.00898915]
[1672997925010,3.80769535,16784.0,16783.0,0.00898915]
[1672997925520,4.36556185,16784.0,16783.0,0.00898915]
[1672997926299,3.96869259,16784.0,16783.0,0.00898915]
[1672997926568,3.95845442,16784.0,16783.0,0.00898915]
[1672997926821,3.29678672,16784.0,16783.0,0.00898915]
[1672997927397,3.94986337,16784.0,16783.0,0.00898915]
[1672997929403,3.94986337,16784.0,16783.0,0.00891082]
[1672997929655,4.40442891,16784.0,16783.0,0.00891082]
[1672997930975,4.30921876,16784.0,16783.0,0.00891082]
[1672997931199,4.40094984,16784.0,16783.0,0.00891082]
[1672997932986,4.30921876,16784.0,16783.0,0.00891082]
[1672997933506,4.05685513,16784.0,16783.0,0.00891082]
[1672997933745,4.42539276,16784.0,16783.0,0.00891082]
[1672997934006,4.05685513,16784.0,16783.0,0.00891082]
[1672997934260,3.70961787,16784.0,16783.0,0.00745047]
[1672997935794,3.81849209,16784.0,16783.0,0.00745047]
[1672997936093,3.96530396,16784.0,16783.0,0.00745047]
[1672997940387,3.35360696,16784.0,16783.0,0.00745047]
[1672997941675,3.54473274,16784.0,16783.0,0.00745047]
[1672997941927,3.95870119,16784.0,16783.0,0.00745047]
[1672997942703,4.41415051,16784.0,16783.0,0.00745047]
[1672997943187,3.95870119,16784.0,16783.0,0.00745047]
[1672997948216,3.25505233,16784.0,16783.0,0.00745047]
[1672997948464,3.96188896,16784.0,16783.0,0.00745047]
[1672997948944,3.85637362,16784.0,16783.0,0.00745047]
[1672997949444,3.9446964,16784.0,16783.0,0.00745047]
[1672997949690,4.39874524,16784.0,16783.0,0.00745047]
[1672997949942,3.9446964,16784.0,16783.0,0.00745047]
[1672997950433,3.38611275,16784.0,16783.0,0.00745047]
[1672997950685,3.94397925,16784.0,16783.0,0.00745047]
[1672997953731,2.77441575,16784.0,16783.0,0.00752958]
[1672997953991,2.77441575,16784.0,16783.0,0.00745047]
[1672997954240,2.17307951,16784.0,16783.0,0.00745047]
[1672997955046,2.17307951,16784.0,16783.0,0.00752958]
[1672997955318,2.17307951,16784.0,16783.0,0.00745047]
[1672997955809,1.57727451,16784.0,16783.0,0.00745047]
[1672997956053,1.57727451,16784.0,16783.0,0.61027073]
[1672997956054,2.11178347,16784.0,16783.0,0.61027073]
[1672997956352,2.11178347,16784.0,16783.0,0.00745047]
[1672997961104,2.11178347,16784.0,16783.0,0.00752958]
[1672997961354,2.11178347,16784.0,16783.0,0.00745047]
[1672997964339,2.11178347,16784.0,16783.0,0.00752958]
[1672997964340,2.11178347,16784.0,16783.0,0.00745047]
[1672997966383,2.11178347,16784.0,16783.0,0.00752958]
[1672997967477,2.11178347,16784.0,16783.0,0.00745047]
[1672997968727,2.11178347,16784.0,16783.0,0.00752958]
[1672997969074,2.11178347,16784.0,16783.0,0.00745047]
[1672997971743,2.11178347,16784.0,16783.0,0.00734464]
[1672997975908,2.11178347,16784.0,16783.0,0.67503008]
[1672997975909,0.98146951,16784.0,16783.0,0.67503008]
[1672997976150,2.11178347,16784.0,16783.0,0.00734464]
[1672997976396,2.38254182,16784.0,16783.0,0.00734464]
[1672997976663,2.94040832,16784.0,16783.0,0.00734464]
[1672997976923,3.01759636,16784.0,16783.0,0.00734464]
[1672997977956,2.7466846,16784.0,16783.0,0.00734464]
[1672997979261,1.5771211,16784.0,16783.0,0.00734464]
[1672997983766,2.11134915,16784.0,16783.0,0.00742375]
[1672997984028,2.11134915,16784.0,16783.0,0.00734464]
[1672997988598,0.0998515,16783.0,16781.0,1.27238889]
[1672997988921,1.11701077,16782.0,16781.0,0.71506554]
[1672997989421,1.11701077,16782.0,16781.0,0.71498642]
[1672997989667,1.20114444,16782.0,16781.0,1.01498642]
[1672997989968,1.20114444,16782.0,16781.0,1.01606554]
[1672997990237,1.20114444,16782.0,16781.0,0.71506554]
[1672997990496,1.23314444,16782.0,16781.0,0.71698642]
[1672997991006,1.23314444,16782.0,16781.0,0.71706554]
[1672997991276,0.63726844,16782.0,16781.0,1.21706554]
[1672997991810,0.99362845,16782.0,16781.0,1.21706554]
[1672997992315,0.63726844,16782.0,16781.0,0.71706554]
[1672997993324,1.23314444,16782.0,16781.0,0.71706554]
[1672997993579,1.23314444,16782.0,16781.0,1.21706554]
[1672997993873,1.23314444,16782.0,16781.0,0.71706554]
[1672997994358,1.23314444,16782.0,16781.0,1.21706554]
[1672997994832,1.23314444,16782.0,16781.0,0.71706554]
[1672997995084,0.63726844,16782.0,16781.0,1.21706554]
[1672997997793,1.23314444,16782.0,16781.0,1.21706554]
[1672997999121,0.63726844,16782.0,16781.0,1.21706554]
[1672998004464,0.63726844,16782.0,16781.0,1.21698642]
[1672998004979,0.63726844,16782.0,16781.0,0.71698642]
[1672998005234,0.63726844,16782.0,16781.0,1.21698642]
[1672998006272,0.63726844,16782.0,16781.0,0.71698642]
[1672998006530,0.63726844,16782.0,16781.0,1.21698642]
[1672998006849,0.63726844,16782.0,16781.0,0.71698642]
[1672998007341,0.63726844,16782.0,16781.0,1.11698642]
[1672998008089,0.63726844,16782.0,16781.0,0.71698642]
[1672998009451,0.63726844,16782.0,16781.0,0.71706554]
[1672998010830,0.63726844,16782.0,16781.0,0.01584454]
[1672998011071,0.19190215,16782.0,16781.0,0.01584454]
[1672998011557,0.63746008,16782.0,16781.0,0.01584454]
[1672998012794,0.63746008,16782.0,16781.0,0.01576656]
[1672998014329,0.63746008,16782.0,16781.0,0.01584568]
[1672998014665,0.63738787,16782.0,16781.0,0.01584568]
[1672998015068,0.63738787,16782.0,16781.0,0.01576656]
[1672998015322,0.63738787,16782.0,16781.0,0.01584568]
[1672998015619,0.63738787,16782.0,16781.0,0.01576656]
[1672998016920,0.63738787,16782.0,16781.0,0.01584568]
[1672998017179,0.63738787,16782.0,16781.0,0.01576656]
[1672998017689,0.19182994,16782.0,16781.0,0.01576656]
[1672998019133,0.78770594,16782.0,16781.0,0.01576656]
[1672998021931,0.78770594,16782.0,16781.0,0.01584568]
[1672998022427,0.78770594,16782.0,16781.0,0.01576656]
[1672998022943,0.78770594,16782.0,16781.0,0.01584568]
[1672998023188,0.78770594,16782.0,16781.0,0.01576656]
[1672998026218,0.78770594,16782.0,16781.0,0.51576656]
[1672998026725,0.78770594,16782.0,16781.0,0.01576656]
[1672998027498,0.78770594,16782.0,16781.0,0.41606941]
[1672998027984,0.78770594,16782.0,16781.0,0.41576656]
[1672998029278,0.44565494,16782.0,16781.0,0.96831959]
[1672998029538,0.52617767,16782.0,16781.0,0.63079087]
[1672998029838,0.52617767,16782.0,16781.0,0.41576656]
[1672998030778,0.52617767,16782.0,16781.0,1.01312119]
[1672998031816,0.52617767,16782.0,16781.0,1.01342404]
[1672998032353,0.52617767,16782.0,16781.0,1.01312119]
[1672998032630,0.52617767,16782.0,16781.0,1.01342404]
[1672998033678,0.56911314,16782.0,16781.0,1.01342404]
[1672998035116,0.92564577,16782.0,16781.0,1.01342404]
[1672998037488,0.92564577,16782.0,16781.0,1.33676366]
[1672998037724,0.92564577,16782.0,16781.0,1.3365336]
[1672998037978,1.19302962,16782.0,16781.0,1.3365336]
[1672998038224,0.92564577,16782.0,16781.0,1.3365336]
[1672998040398,1.19301428,16782.0,16781.0,1.3365336]
[1672998040674,0.92564577,16782.0,16781.0,1.3365336]
[1672998041189,0.92564577,16782.0,16781.0,1.01319398]
[1672998041749,0.92564577,16782.0,16781.0,0.61289113]
[1672998042021,0.56911314,16782.0,16781.0,0.61289113]
[1672998043056,0.92559116,16782.0,16781.0,0.61289113]
[1672998045430,0.56911314,16782.0,16781.0,0.61319398]
[1672998045595,0.56911314,16782.0,16781.0,0.73258046]
[1672998046115,0.92557766,16782.0,16781.0,0.73258046]
[1672998048942,0.92557766,16782.0,16781.0,0.61319398]
[1672998049184,0.92557766,16782.0,16781.0,1.11319398]
[1672998050276,1.19290432,16782.0,16781.0,1.11319398]
[1672998050828,0.92557766,16782.0,16781.0,1.11319398]
[1672998051076,1.19290351,16782.0,16781.0,1.11319398]
[1672998051341,0.74724857,16782.0,16781.0,1.70910598]
[1672998051606,0.74724857,16782.0,16781.0,1.88530284]
[1672998052437,1.19290351,16782.0,16781.0,0.78908799]
[1672998052653,0.92557766,16782.0,16781.0,0.78908799]
[1672998054186,0.92557766,16782.0,16781.0,0.61289113]
[1672998054409,0.92551133,16782.0,16781.0,0.61289113]
[1672998054690,0.56911314,16782.0,16781.0,1.01289113]
[1672998055203,0.92552103,16782.0,16781.0,1.01289113]
[1672998056197,0.92552103,16782.0,16781.0,1.01319398]
[1672998056883,0.92552103,16782.0,16781.0,1.11820104]
[1672998057887,0.92552103,16782.0,16781.0,1.11811213]
[1672998058144,0.74719768,16782.0,16781.0,2.11811213]
[1672998058388,0.74719768,16782.0,16781.0,3.28188201]
[1672998058633,0.9254231,16782.0,16781.0,3.28188201]
[1672998058887,0.56901521,16782.0,16781.0,3.28188201]
[1672998059924,0.56901521,16782.0,16781.0,2.71402413]
[1672998061692,0.56901521,16782.0,16781.0,3.30993613]
[1672998062718,0.56901521,16782.0,16781.0,3.30793613]
[1672998062974,0.58201521,16782.0,16781.0,3.35093613]
[1672998063237,0.56901521,16782.0,16781.0,3.30793613]
[1672998063499,0.58301521,16782.0,16781.0,3.34993613]
[1672998064006,0.58301521,16782.0,16781.0,3.91779401]
[1672998064262,0.31568362,16782.0,16781.0,3.91779401]
[1672998068854,0.31568362,16782.0,16781.0,3.81278695]
[1672998069097,0.1374582,16782.0,16781.0,3.81278695]
[1672998070115,0.31568362,16782.0,16781.0,3.81278695]
[1672998070364,0.1374582,16782.0,16781.0,3.81278695]
[1672998073663,0.1374582,16782.0,16781.0,3.24492907]
[1672998073917,0.1374582,16782.0,16781.0,3.8388062]
[1672998075928,0.31568362,16782.0,16781.0,3.2428942]
[1672998078364,0.62373948,16783.0,16781.0,4.01584512]
[1672998078661,0.44565494,16784.0,16782.0,2.27273259]
[1672998078662,0.62373948,16784.0,16782.0,2.27273259]
[1672998078916,0.62388948,16784.0,16782.0,1.68300145]
[1672998079179,0.62373948,16783.0,16782.0,0.60789186]
[1672998079436,0.80206283,16783.0,16782.0,0.60789186]
[1672998079718,0.80206283,16783.0,16782.0,0.74789186]
[1672998079961,0.80206283,16783.0,16782.0,0.60789186]
[1672998080731,1.50905485,16783.0,16782.0,0.66889186]
[1672998081021,0.91321385,16783.0,16782.0,0.60789186]
[1672998084558,0.37835995,16783.0,16782.0,1.73492169]
[1672998084855,0.11115102,16783.0,16782.0,2.8551915]
[1672998085635,0.11115102,16783.0,16782.0,3.27045509]
[1672998085895,0.11115102,16783.0,16782.0,2.83045509]
[1672998086177,0.11115102,16783.0,16782.0,2.74238594]
[1672998086684,0.73009583,16785.0,16783.0,0.5]
[1672998086949,0.73009583,16785.0,16783.0,2.04013697]
[1672998087204,0.37368794,16785.0,16783.0,2.04013697]
[1672998088269,0.37353794,16785.0,16783.0,2.04013697]
[1672998088521,0.55161784,16785.0,16783.0,2.10113697]
[1672998088779,0.55161784,16785.0,16784.0,0.58126247]
[1672998090998,0.55161784,16785.0,16784.0,1.17706747]
[1672998092062,0.28440891,16785.0,16784.0,1.31564694]
[1672998092316,0.55161784,16785.0,16784.0,1.31564694]
[1672998092569,0.28440891,16785.0,16784.0,1.17706747]
[1672998092857,0.28440891,16785.0,16784.0,2.77287247]
[1672998093358,0.10632901,16785.0,16784.0,2.77287247]
[1672998093606,0.28440891,16785.0,16784.0,2.77287247]
[1672998095168,0.28440891,16785.0,16784.0,2.90787247]
[1672998095404,0.28440891,16785.0,16784.0,2.77287247]
[1672998095655,0.28440891,16785.0,16784.0,2.83387247]
[1672998096472,0.28440891,16785.0,16784.0,2.83417526]
[1672998096708,0.28440891,16785.0,16784.0,2.23837026]
[1672998096971,0.28440891,16785.0,16784.0,2.61621938]
[1672998097824,0.10632901,16785.0,16784.0,2.63076191]
[1672998098038,0.10632901,16785.0,16784.0,3.16294795]
[1672998098289,0.10632901,16785.0,16784.0,3.70814082]
[1672998098578,0.54740166,16787.0,16784.0,3.64714082]
[1672998098834,0.54740166,16787.0,16785.0,0.5]
[1672998099118,0.54740166,16787.0,16785.0,1.64118882]
[1672998099378,0.54740166,16787.0,16786.0,0.14674276]
[1672998099633,0.54725166,16787.0,16786.0,0.64674276]
[1672998100675,0.54725166,16787.0,16786.0,1.24247676]
[1672998101440,0.28004273,16787.0,16786.0,1.24247676]
[1672998101727,0.28004273,16787.0,16786.0,1.97941611]
[1672998103479,0.28004273,16787.0,16786.0,1.38368211]
[1672998107799,0.28004273,16787.0,16786.0,0.73724211]
[1672998108045,0.54725166,16787.0,16786.0,1.23724211]
[1672998109035,0.54725166,16787.0,16786.0,0.73724211]
[1672998109285,0.28004273,16787.0,16786.0,1.23724211]
[1672998113945,0.54725166,16787.0,16786.0,1.23724211]
[1672998114194,0.28004273,16787.0,16786.0,1.23724211]
[1672998115731,0.54725166,16787.0,16786.0,1.23724211]
[1672998115989,0.28004273,16787.0,16786.0,1.23724211]
[1672998117540,0.28004273,16787.0,16786.0,1.17624211]
[1672998118055,0.28004273,16787.0,16786.0,1.41301582]
[1672998119318,0.54725166,16787.0,16786.0,1.41301582]
[1672998119580,0.54725166,16787.0,16786.0,1.17624211]
[1672998119842,0.28004273,16787.0,16786.0,1.17624211]
[1672998120631,0.54725166,16787.0,16786.0,1.17624211]
[1672998121168,0.28004273,16787.0,16786.0,1.17624211]
[1672998121402,0.54725166,16787.0,16786.0,1.17624211]
[1672998123026,0.72557965,16787.0,16786.0,1.17624211]
[1672998123540,0.90370121,16787.0,16786.0,1.17624211]
[1672998124803,0.72557965,16787.0,16786.0,1.17624211]
[1672998125055,0.72557965,16787.0,16786.0,1.77197611]
[1672998125810,0.72557965,16787.0,16786.0,2.77197611]
[1672998126108,0.90372044,16787.0,16786.0,2.77197611]
[1672998126340,0.72557965,16787.0,16786.0,2.77197611]
[1672998127109,0.90372125,16787.0,16786.0,2.77197611]
[1672998127359,0.72557965,16787.0,16786.0,2.77197611]
[1672998128333,0.54733315,16787.0,16786.0,3.10874812]
[1672998129125,0.72557965,16787.0,16786.0,2.77197611]
[1672998130611,0.72557965,16787.0,16786.0,2.83297611]
[1672998134094,0.54741576,16787.0,16786.0,2.83297611]
[1672998134337,0.90382365,16787.0,16786.0,2.77197611]
[1672998134817,0.54741576,16787.0,16786.0,3.50271011]
[1672998135035,0.90382365,16787.0,16786.0,3.50271011]
[1672998135298,0.54741576,16787.0,16786.0,3.50271011]
[1672998136338,0.90382365,16787.0,16786.0,3.50271011]
[1672998136590,0.54741576,16787.0,16786.0,3.50271011]
[1672998137096,0.72557965,16787.0,16786.0,3.91255512]
[1672998137345,0.54749335,16787.0,16786.0,3.91255512]
[1672998137842,0.90390124,16787.0,16786.0,3.91255512]
[1672998138092,0.72557965,16787.0,16786.0,3.91255512]
[1672998138600,0.28028467,16787.0,16786.0,3.91255512]
[1672998138844,0.5474936,16787.0,16786.0,3.91255512]
[1672998139840,0.5474936,16787.0,16786.0,3.77755512]
[1672998140085,0.5474936,16787.0,16786.0,3.91755512]
[1672998140334,0.5474936,16787.0,16786.0,3.77755512]
[1672998140592,0.5474936,16787.0,16786.0,3.50771011]
[1672998140854,0.72557965,16787.0,16786.0,2.91197611]
[1672998142900,0.90385797,16787.0,16786.0,2.91197611]
[1672998143166,0.54745008,16787.0,16786.0,2.77197611]
[1672998143429,0.72557965,16787.0,16786.0,2.77197611]
[1672998143716,0.72557965,16787.0,16786.0,2.90697611]
[1672998143930,0.72557965,16787.0,16786.0,3.08757139]
[1672998146230,0.90385564,16787.0,16786.0,3.08757139]
[1672998146967,0.54744775,16787.0,16786.0,3.08757139]
[1672998147230,0.54744775,16787.0,16786.0,3.68330539]
[1672998149009,0.54744775,16787.0,16786.0,2.95257139]
[1672998149263,0.54744775,16787.0,16786.0,3.09257139]
[1672998149485,0.54744775,16787.0,16786.0,2.95257139]
[1672998149735,0.54744775,16787.0,16786.0,3.08757139]
[1672998149995,0.54744775,16787.0,16786.0,2.95257139]
[1672998150207,0.54744775,16787.0,16786.0,3.09257139]
[1672998150985,0.54744775,16787.0,16786.0,2.95257139]
[1672998151762,0.54744775,16787.0,16786.0,3.36771011]
[1672998152015,0.54744775,16787.0,16786.0,3.50271011]
[1672998153733,0.54744775,16787.0,16786.0,2.90697611]
[1672998154714,0.54744775,16787.0,16786.0,3.50271011]
[1672998154967,0.54744775,16787.0,16786.0,2.90697611]
[1672998155912,0.54744775,16787.0,16786.0,3.50271011]
[1672998156155,0.90385564,16787.0,16786.0,3.50271011]
[1672998156459,0.54744775,16787.0,16786.0,3.50271011]
[1672998156716,0.90385564,16787.0,16786.0,2.90697611]
[1672998156959,0.72557965,16787.0,16786.0,2.90697611]
[1672998157183,0.90389107,16787.0,16786.0,2.90697611]
[1672998157438,0.72557965,16787.0,16786.0,2.90697611]
[1672998157723,0.90389045,16787.0,16786.0,2.90697611]
[1672998158436,0.54748256,16787.0,16786.0,2.90697611]
[1672998159020,0.54748256,16787.0,16786.0,3.50271011]
[1672998159246,0.54748256,16787.0,16786.0,3.2751196]
[1672998160571,0.54748256,16787.0,16786.0,2.6793856]
[1672998160833,0.54748256,16787.0,16786.0,3.2751196]
[1672998162045,0.54748256,16787.0,16786.0,3.8708536]
[1672998162859,0.54748256,16787.0,16786.0,3.2751196]
[1672998164804,0.90389045,16787.0,16786.0,3.2751196]
[1672998165060,0.90391248,16787.0,16786.0,3.7358536]
[1672998165313,0.90391248,16787.0,16786.0,3.8758536]
[1672998165314,0.54750459,16787.0,16786.0,3.8758536]
[1672998165565,0.54750459,16787.0,16786.0,3.7358536]
[1672998166313,0.54750459,16787.0,16786.0,3.8708536]
[1672998167922,0.54750459,16787.0,16786.0,3.50271011]
[1672998168996,0.54750459,16787.0,16786.0,2.90697611]
[1672998170155,0.54750459,16787.0,16786.0,3.50271011]
[1672998174935,0.54750459,16787.0,16786.0,2.90697611]
[1672998175438,0.54750459,16787.0,16786.0,3.50271011]
[1672998175703,0.54750459,16787.0,16786.0,4.09658724]
[1672998178140,0.54750459,16787.0,16786.0,11.59658724]
[1672998179089,0.54750459,16787.0,16786.0,4.09658724]
[1672998182964,0.28029566,16787.0,16786.0,4.09658724]
[1672998183244,0.54750459,16787.0,16786.0,3.50271011]
[1672998183764,0.28029566,16787.0,16786.0,2.83527076]
[1672998184008,0.10196283,16787.0,16786.0,3.92064842]
[1672998184261,0.28029566,16787.0,16786.0,4.21452555]
[1672998184754,0.28029566,16787.0,16786.0,4.07952555]
[1672998185007,0.10196283,16787.0,16786.0,4.21952555]
[1672998186759,0.10196283,16787.0,16786.0,11.71952555]
[1672998187279,0.101858,16787.0,16786.0,12.8371167]
[1672998188285,0.101858,16787.0,16786.0,11.84758831]
[1672998188540,0.101858,16787.0,16786.0,12.99710969]
[1672998188799,0.101858,16787.0,16786.0,12.28758831]
[1672998189072,0.101858,16787.0,16786.0,12.01952555]
[1672998189931,0.101858,16787.0,16786.0,11.87952555]
[1672998190432,0.101858,16787.0,16786.0,12.14758831]
[1672998190714,0.101858,16787.0,16786.0,11.87952555]
[1672998191475,0.101858,16787.0,16786.0,12.01952555]
[1672998192251,0.101858,16787.0,16786.0,11.71952555]
[1672998193279,0.101858,16787.0,16786.0,12.01952555]
[1672998194045,0.101858,16787.0,16786.0,11.71952555]
[1672998194774,0.101858,16787.0,16786.0,12.01952555]
[1672998196556,0.101858,16787.0,16786.0,12.28758831]
[1672998196827,0.101858,16787.0,16786.0,13.66837816]
[1672998197045,0.00291378,16788.0,16787.0,0.5]
[1672998197361,0.00291378,16788.0,16787.0,2.9300567]
[1672998197887,0.00291378,16788.0,16787.0,2.4514202]
[1672998198438,0.00291378,16788.0,16787.0,2.5914202]
[1672998198646,0.00291378,16788.0,16787.0,2.7700567]
[1672998198893,0.00291378,16788.0,16787.0,2.5914202]
[1672998199641,0.09226365,16788.0,16787.0,2.5914202]
[1672998200128,0.09226365,16788.0,16787.0,2.8914202]
[1672998201400,0.09226365,16788.0,16787.0,2.448529]
[1672998201660,0.09226365,16788.0,16787.0,10.47745317]
[1672998201933,0.09226365,16788.0,16787.0,10.47755222]
[1672998202225,0.09226365,16788.0,16787.0,10.48605222]
[1672998202715,0.09226365,16788.0,16787.0,10.34605222]
[1672998202991,0.09226365,16788.0,16787.0,10.48605222]
[1672998204840,0.09226365,16788.0,16787.0,10.68605222]
[1672998205098,0.09226365,16788.0,16787.0,11.28605222]
[1672998205328,0.09226365,16788.0,16787.0,11.14605222]
[1672998205580,0.09226365,16788.0,16787.0,11.28505222]
[1672998205834,0.09226365,16788.0,16787.0,11.14605222]
[1672998206086,0.09226365,16788.0,16787.0,11.28505222]
[1672998206343,0.09226365,16788.0,16787.0,11.55311498]
[1672998206868,0.09226365,16788.0,16787.0,11.28505222]
[1672998208680,0.09226365,16788.0,16787.0,11.55311498]
[1672998208943,0.09226365,16788.0,16787.0,11.28505222]
[1672998209161,0.09226365,16788.0,16787.0,12.14706265]
[1672998209416,0.09226365,16788.0,16787.0,11.27951612]
[1672998210418,0.09226365,16788.0,16787.0,11.87951612]
[1672998210674,0.09226365,16788.0,16787.0,12.14757888]
[1672998211186,0.09226365,16788.0,16787.0,11.65769555]